Cogmind - Beta 14 @@@ ROGUE MODE // 2024.08.12 @ 14:52:53 Player: Kyzrati Result: Destroyed by LK-N7X(R) with Subdweller Machine Gun Performance ------------- Evolutions (0) 0 Regions Visited (2) 400 Robots Destroyed (14) 70 Value Destroyed (286) 286 Prototype IDs (0) 0 Alien Tech Used (0) 0 Bonus (0) 0 TOTAL SCORE: 756 Bonus ------- None Cogmind --------- Core Integrity 0/250 Matter 273/300 Energy 75/100 System Corruption 1% Temperature Cool (0) Movement Core (100) Ox1 Location -10/Subcaves Parts ------- > --- POWER (1) -------- (None) > --- PROPULSION (2) --- (None) > --- UTILITY (2) ------ Small Storage Unit Improved Terrain Scanner > --- WEAPON (2) ------- (None) > --- INVENTORY (8) ---- Wheel Medium Laser Light Assault Rifle Mining Laser Scrap Shield Fragment (48) Peak State ------------ > --- POWER ------------ Ion Engine > --- PROPULSION ------- Light Treads Light Treads > --- UTILITY ---------- Small Storage Unit Improved Terrain Scanner > --- WEAPON ----------- Assault Rifle Light Assault Rifle > --- INVENTORY -------- Light Ion Engine Aluminum Leg Aluminum Leg Wheel Compact Wheel Medium Laser Mining Laser [Rating: 9] Favorites ----------- Power Ion Engine Engine Ion Engine Propulsion Light Treads Treads Light Treads Wheel Compact Wheel Utility Small Storage Unit Device Improved Terrain Scanner Storage Small Storage Unit Weapon Assault Rifle Energy Cannon Beam Cannon Ballistic Gun Assault Rifle Ballistic Cannon Light Cannon Special Weapon Mining Laser Impact Weapon Hammer Build | -11 -10 -10 ------- Run | Yrd Mat Sub Slots Evolved . | . . . Power . | . . . Propulsion . | . . . Utility . | . . . Weapon . | . . . Parts Attached 20 | 7 7 6 Power 1 | 1 . . Engine 1 | 1 . . Core . | . . . Reactor . | . . . Propulsion 3 | 2 . 1 Treads 2 | 2 . . Leg . | . . . Wheel 1 | . . 1 Hover . | . . . Flight . | . . . Utility 2 | 2 . . Device 1 | 1 . . Storage 1 | 1 . . Processor . | . . . Hackware . | . . . Protection . | . . . Artifact . | . . . Weapon 14 | 2 7 5 Energy Gun . | . . . Energy Cannon 1 | . . 1 Ballistic Gun 7 | 2 3 2 Ballistic Cannon 1 | . . 1 Launcher . | . . . Special Weapon 4 | . 4 . Impact Weapon 1 | . . 1 Slashing Weapon . | . . . Piercing Weapon . | . . . Special Melee Weapon . | . . . Unidentified Prototypes . | . . . Parts Lost 8 | . . 8 Power 1 | . . 1 Propulsion 3 | . . 3 Utility . | . . . Weapon 4 | . . 4 Highest Loss Streak 7 | . . 7 To Critical Strikes . | . . . Average Slot Usage (%) 99 | . 100 97 Engine 13 | . 14 13 Treads 24 | . 28 20 Wheel 3 | . . 6 Device 14 | . 14 14 Storage 14 | . 14 14 Energy Cannon 3 | . . 7 Ballistic Gun 17 | . 26 6 Ballistic Cannon 3 | . . 7 Special Weapon 3 | . 1 6 Peak Build Rating 9 | 9 9 9 Average Rating 8 | 5 9 8 On Entrance 6 | . 9 9 Naked Turns . | . . . Heaviest Build 17 | 14 14 17 Greatest Support 40 | 40 40 40 Greatest Overweight (x) 1 | . . 1 Average Overweight (x) . | . . . Largest Inventory Capacity 8 | 8 8 8 Average Capacity 7 | 7 8 8 Most Carried 8 | 7 8 8 Average Carried 7 | 4 7 7 Final Capacity 8 | 8 8 8 Final Carried 8 | 7 8 5 Class Distribution -------------------- 100% | Mutant Dominant Class ---------------- Mutant | -10/Materials Mutant | -10/Subcaves Resources | -11 -10 -10 ----------- Run | Yrd Mat Sub Matter Collected 540 | 147 282 111 Remotely . | . . . Salvage Created 465 | 125 274 66 Parts 23 | 11 11 1 Haulers Intercepted 1 | . 1 . Recyclers Shooed . | . . . Parts Field Recycled . | . . . Retrieved Matter . | . . . Parts Self-Destructed 4 | . . 4 Prevented . | . . . Kills | -11 -10 -10 ------- Run | Yrd Mat Sub Combat Hostiles Destroyed 7 | . 5 2 Guns 5 | . 5 . Cannons 1 | . . 1 Classes Destroyed 7 | 2 4 1 Tunneler 3 | 3 . . Hauler 1 | . 1 . Recycler 1 | 1 . . Watcher 2 | . 2 . Swarmer 2 | . 2 . Grunt 3 | . 3 . Subdweller 2 | . . 2 Best Kill Streak 3 | 3 3 1 Combat Bots Only 2 | . 2 1 Max Kills in Single Turn 1 | 1 1 1 Gunslinging . | . . . Exploded . | . . . Melee . | . . . Uniques/NPCs Destroyed . | . . . Combat | -11 -10 -10 -------- Run | Yrd Mat Sub Hostile Shots Fired 60 | . 19 41 Missed 11 | . 3 8 Damage Taken 1126 | . 179 947 Core 269 | . 20 249 Absorbed by Shields . | . . . Core Remaining (%) 100 | 100 . . Volleys Fired 48 | 8 29 11 Largest 2 | 2 2 2 Hottest 120 | 40 120 95 Shots Fired 93 | 16 54 23 Gun 69 | 16 46 7 Cannon 16 | . . 16 Launcher . | . . . Special 8 | . 8 . Kinetic 77 | 16 46 15 Thermal 16 | . 8 8 Explosive . | . . . Electromagnetic . | . . . Robot Hit Streak 23 | 4 10 23 Robot Miss Streak 3 | 1 3 1 Penetration Max . | . . . Secondary Targets . | . . . Shots Hit Robots 57 | 11 23 23 Core Hits 24 | 6 14 4 Critical Kills . | . . . Critical Parts Destroyed 1 | . . 1 Critical Strikes 1 | . . 1 Smash 1 | . . 1 Melee Attacks 2 | . . 2 Impact 2 | . . 2 Slashing . | . . . Piercing . | . . . Sneak Attacks . | . . . Combat Hostiles . | . . . Follow-up Attacks . | . . . Damage Inflicted 751 | 130 248 373 Guns 426 | 130 248 48 Cannons 287 | . . 287 Explosions . | . . . Melee 38 | . . 38 Ramming . | . . . Kinetic 573 | 130 248 195 Thermal 140 | . . 140 Explosive . | . . . Electromagnetic . | . . . Impact 38 | . . 38 Slashing . | . . . Piercing . | . . . Highest Corruption 1 | . 1 1 Average Corruption 1 | . 1 1 Corruption Purged . | . . . Corruption Blocked . | . . . Effects 6 | . 2 4 Matter Fused 2 | . . 2 Energy Discharges 1 | . 1 . Parts Rejected 1 | . . 1 Misfires 2 | . 1 1 Overload Shots . | . . . Overflow Damage 22 | . . 22 Projectiles . | . . . Explosions . | . . . Melee 22 | . . 22 Knockbacks 2 | . . 2 Impact . | . . . Kinetic 2 | . . 2 Secondary . | . . . Self-Inflicted Damage . | . . . Shots . | . . . Rammed . | . . . Targets Rammed . | . . . Kicked . | . . . Crushed . | . . . Highest Temperature 80 | . 80 . Average Temperature 25 | . 25 . Received Heat Transfer 84 | . 84 . Siege Activations . | . . . Robots Corrupted 1 | . . 1 Combat Hostiles 1 | . . 1 Parts Fried 1 | . . 1 Impact Corruptions 1 | . . 1 Robots Melted . | . . . Combat Hostiles . | . . . Parts Melted . | . . . Heat Transferred 296 | . . 296 Parts Sabotaged . | . . . Parts Stolen . | . . . Parts Stripped . | . . . Power Chain Reactions . | . . . Alert | -11 -10 -10 ------- Run | Yrd Mat Sub Peak Influence 120 | 20 120 . Initial 13 | . 13 . Average 36 | 7 41 . Maximum Alert Level . | . . . Low Security (%) 100 | 100 100 . Level 1 . | . . . Level 2 . | . . . Level 3 . | . . . Level 4 . | . . . Level 5 . | . . . High Security . | . . . Max Security . | . . . Squads Dispatched 1 | . 1 . Investigation . | . . . Extermination . | . . . Reinforcement 1 | . 1 . Assault . | . . . Garrison . | . . . Intercept . | . . . Searches Triggered . | . . . Construction Impeded . | . . . Haulers Reinforced . | . . . Active Scanning Responses . | . . . Cargo Convoy Interrupts . | . . . Stealth | -11 -10 -10 --------- Run | Yrd Mat Sub Distress Signals . | . . . Communications Jammed . | . . . Distress Signals . | . . . Times Spotted 13 | . 8 5 Peak Tracking Total 4 | . 3 4 Tactical Retreats 1 | . 1 . Traps | -11 -10 -10 ------- Run | Yrd Mat Sub Traps Triggered 1 | . 1 . Indirectly . | . . . Trap Hack Attempts . | . . . Triggered . | . . . Disarmed . | . . . Reprogrammed . | . . . Reused . | . . . Traps Extracted . | . . . Installed . | . . . Triggered . | . . . Machines | -11 -10 -10 ---------- Run | Yrd Mat Sub Machines Disabled 1 | . 1 . Max in Single Turn 1 | . 1 . Machines Repaired . | . . . Machines Dismantled . | . . . Machines Sabotaged . | . . . Overloaded Fab Kills . | . . . Hacking | -11 -10 -10 --------- Run | Yrd Mat Sub Machines Accessed 6 | . 5 1 Terminals 5 | . 5 . Fabricators . | . . . Repair Stations . | . . . Recycling Units . | . . . Scanalyzers . | . . . Garrison Access . | . . . Total Hacks 17 | . 16 1 Successful 8 | . 7 1 Failed 9 | . 9 . Catastrophic 2 | . 2 . Database Lockouts . | . . . Manual 11 | . 11 . Terminals 16 | . 16 . Fabricators . | . . . Repair Stations . | . . . Recycling Units . | . . . Scanalyzers . | . . . Garrison Access . | . . . Terminal Hacks 6 | . 5 1 Open Door 1 | . . 1 Maintenance Status 1 | . 1 . Recall Reinforcements 1 | . 1 . Zone Layout 3 | . 3 . Fabricator Hacks . | . . . Repair Station Hacks . | . . . Recycling Unit Hacks . | . . . Scanalyzer . | . . . Garrison Access Hacks . | . . . Unauthorized Hacks 2 | . 2 . Terminals 2 | . 2 . Track 2 | . 2 . Fabricators . | . . . Repair Stations . | . . . Recycling Units . | . . . Scanalyzers . | . . . Garrison Access . | . . . Data Cores Recovered . | . . . Used . | . . . Hacking Detections 4 | . 4 . Full Trace Events . | . . . Feedback Events . | . . . Feedback Blocked . | . . . Robot Schematics Acquired . | . . . Robots Built . | . . . Authchips . | . . . Time . | . . . Total Robot Build Rating . | . . . Part Schematics Acquired . | . . . Parts Built . | . . . Authchips . | . . . Time . | . . . Total Part Build Rating . | . . . Parts Repaired . | . . . Time . | . . . Parts Recycled . | . . . Recycled Matter . | . . . Retrieved Matter . | . . . Retrieved Components . | . . . Parts Scanalyzed . | . . . Part Schematics Acquired . | . . . Parts Damaged . | . . . Bothacking | -11 -10 -10 ------------ Run | Yrd Mat Sub Used RIF Installer . | . . . Robots Hacked . | . . . Non-combat . | . . . Combat . | . . . Robot Hacks Applied . | . . . Relay Couplers Released . | . . . Fabnet Peak Effective % . | . . . Robots Rewired . | . . . Allies Hacked . | . . . Hacks Repelled . | . . . Allies | -11 -10 -10 -------- Run | Yrd Mat Sub Total Allies . | . . . Largest Group . | . . . Highest-Rated Group . | . . . Highest-Rated Ally . | . . . Total Orders . | . . . Ally Attacks . | . . . Total Damage . | . . . Kills . | . . . Allies Corrupted . | . . . Allies Melted . | . . . Intel | -11 -10 -10 ------- Run | Yrd Mat Sub Robot Analysis Total . | . . . Derelict Logs Recovered 2 | . . 2 Drone Launches . | . . . Drone Recoveries . | . . . Exploration | -11 -10 -10 ------------- Run | Yrd Mat Sub Turns Passed 1488 | 130 743 615 Spaces Moved 845 | 59 364 422 Core 3 | 3 . . Treads 596 | 56 364 176 Legs . | . . . Wheels 246 | . . 246 Hover . | . . . Flight . | . . . Fastest Speed 50 | 50 160 100 Average Speed 146 | 154 160 133 Slowest Speed 160 | 160 160 160 Overloaded Moves . | . . . Propulsion Burnouts . | . . . Robots Hopped . | . . . Cave-ins Triggered . | . . . Exploration Rate (%) 39 | 4 79 35 Regions Visited 2 Branch Regions 1 Pre-discovered Areas . | . . . Known Exits Taken . | . . . Unknown Exits Taken 2 | 1 1 . Scrap Searched . | . . . Spaces Dug 4 | . 4 . Terrain Destroyed 4 | . 4 . Melee . | . . . Projectile 4 | . 4 . AOE . | . . . Terrain Rammed . | . . . Walls Destroyed . | . . . Machines Disabled . | . . . Actions | -11 -10 -10 --------- Run | Yrd Mat Sub Total 987 | 80 460 447 Wait 55 | . 50 5 Move 843 | 58 363 422 Hop . | . . . Pick Up 14 | 7 6 1 Fast Attach 7 | 7 . . Attach 4 | . . 4 Detach . | . . . Swap 9 | . 7 2 Drop 5 | . 5 . Fire 48 | 8 29 11 Melee 2 | . . 2 Ram . | . . . Kick . | . . . Crush . | . . . Escape Stasis . | . . . Rewire . | . . . Trap . | . . . Miscellaneous . | . . . Route ------- -11/Scrapyard -10/Materials (discovered 4 exits: [*Mat x3] / *Sub) -10/Subcaves (discovered 2 exits: *Mat x2) History --------- Turn | Location | Event 44 | -11/Scrapyard | Discovered new exit (range 16) 131 | -11/Scrapyard | Entered Materials 216 | -10/Materials | Discovered new exit (range 15) 313 | -10/Materials | Build established: Mutant 545 | -10/Materials | Discovered new exit (range 9) 697 | -10/Materials | Discovered new exit (range 8) 866 | -10/Materials | Discovered new exit (range 3) 874 | -10/Materials | Entered Subcaves 946 | -10/Subcaves | Discovered new exit (range 3) 1269 | -10/Subcaves | Identified exit to Materials 1279 | -10/Subcaves | Shifting Twisted Machinery released Flamer 1325 | -10/Subcaves | Shifting Twisted Machinery released Flamer 1458 | -10/Subcaves | Ambushed by Subdweller buried in earth 1464 | -10/Subcaves | Ambushed by Subdweller buried in earth 1474 | -10/Subcaves | Core integrity fell below 50% 1478 | -10/Subcaves | Core integrity fell below 20% 1489 | -10/Subcaves | Destroyed by LK-N7X(R) with Subdweller Machine Gun Last Messages --------------- Sealed Heavy Doors opened. 01459_ I6-1BW(R): "ARGHSUB!" 01462_ Lgt. Treads destroyed. 01463_ Lgt. Cannon destroyed. 01465_ 3W-I4B(R): "ARGHSUB!" 01466_ Beam Cannon destroyed. 01466_ I6-1BW(R) destroyed. 01467_ Ion Engine destroyed. 01473_ KG-0PN(R) suffers critical hit (Smash). 01473_ Destroyed Sub. Shrapnel Launcher. 01473_ KG-0PN(R) system corrupted by crushing effect. 01474_ KG-0PN(R) system terminally corrupted. 01474_ Sub. Monowheel fried. 01476_ Subatomizers dissect the Sub. Power Source. 01477_ System corrupted: Hammer rejected. 01478_ Com. Wheel destroyed. 01487_ Assault Rifle destroyed. 01488_ Lgt. Assault Rifle destroyed. Map ----- +----------------------------------------------------+ | ????????????????????????????????????????????? | | ????????????????????????????????????????? | | #####???????????????????????????????????????? | | #???????????????????????????????????????????? | | #??????????????????????????????????????????? | | ### #?????????????????????????????????????????? | | ##?? #????????????????????????????????????????? | | ????? #????????????????????????????????????????? | | ?????? #????????????????????????????????????????? | | ???????##????????????????????????????????????????? | | ##???????????????????????????????????????????????? | | #???###?????????#????#??????????????????????????? | | ????? ##???????????#??#????????????????????????? | | ?????? ##?????????#????????????????????????????? | | ????#? ##?#?????????????????#?????????????????? | | #####?# #??????#???????????????????????????????? | | ### #????#?????????????????????????????????? | | ##???########??????????????????????????? | | ## #??## #????####???#??????????????? | | ### #??# #####" ###?????#??????????? | | ## # #??# " " ?? ## #??????????? | | ###??# ?## ?????????? | | ## #####; R ##? ??????????? | | ##### ## # #?????????????? | | ##??## """""???????????????? | | ##??# @R##" # "?????#?????????? | | ##### # %#??? "???????????????? | | #?# ##; ##?????? ??????????????? | | ##?# ### ### * #??????????????????????? | | ####?# #?## #?#%; #??????????????????????? | | #????# ???##### ;% < ##??????????????????????? | | ?????###???????# ; ##???? ?????????????????? | | ???????#???????##### ;##????????????????????????? | | ??????????#??#?????#;;;#?#???????????????????????? | | ???#?????????#?##?######?????????????????????????? | | ???????????????????????????????#?????????????????? | | ????????????????#????????????????????????????????? | | ??????????????????????????????????#??????????????? | | ??????????????????????????????????#??????????????? | | ??????????????#??????????????????????????????????? | | ?????????????????????????????????????????????????? | | ?????????????????????????????????????????????????? | | ?????????????????????????????????????????????????? | | ?????????????????????????????????????????????????? | | ?????????????????????????????????????????????????? | | ?????????????????????????????????????????????????? | | ?????????????????????????????????????????????????? | | ?????????????????????????????????????????????????? | | ?????????????????????????????????????????????????? | | | +----------------------------------------------------+ Best States ------------- Heat Dissipation 25 Energy Generation 10 Energy Capacity 250 Matter Stores 300 Matter Capacity 300 Sight Range 16 Terrain Scan Range 16 Terrain Scan Density 10 Evasion (%) 40 Recoil Reduction 2 Item Schematics ----------------- None Robot Schematics ------------------ None Fabricated ------------ Nothing Alien Tech Used ----------------- None Achievements -------------- None Challenges ------------ None Game ------ Seed ReactionGaussAutocannon Manual? 0 Play Time 00:13:36 Cumulative 531.9 hours Start 2024.08.12 @ 14:37:14 End 2024.08.12 @ 14:52:53 Sessions 2 Manual Loads 0 Difficulty Rogue Special Mode None Game No. 147 Rogue 147 Adventurer 0 Explorer 0 Win Type - Total 37 Types 27/0/3/2/1/1/1/2/0 Lore% 36 Gallery% 79 Achievement% 86 Wizard Run 0 Options --------- Layout 2 ASCII 1 Keyboard 1 Movement Numpad Keybinds 0 Fullscreen 2 Font 24/Smallcaps Map View 50x44 Zoom Use 0% Tactical HUD 1 Map Filters NONE Filters NONE Steam 1 RUN: 36dd2366-bb32-410e-aa23-68e21e07e13e